[Event "*** Titled Tuesday Blitz"]
[Site "Chess.com"]
[Date "2020.05.19"]
[Round "2"]
[White "IMinTheWings"]
[Black "spidernv"]
[Result "1-0"]
[WhiteElo "2225"]
[BlackElo "2426"]
[TimeControl "180+1"]
[EndTime "12:16:16 PDT"]
[Termination "IMinTheWings won by checkmate"]

1. c4 {[%clk 0:03:00.9]} 1... Nf6 {[%clk 0:02:57]} 2. Nc3 {[%clk 0:03:01.1]}
2... e6 {[%clk 0:02:56.7]} 3. e4 {[%clk 0:03:01.4]} 3... d5 {[%clk 0:02:52.7]}
4. e5 {[%clk 0:03:01.6]} 4... Ng8 {[%clk 0:02:51.2]} 5. d4 {[%clk 0:02:54.5]}
5... c6 {[%clk 0:02:51.2]} 6. Nf3 {[%clk 0:02:52.9]} 6... Ne7 {[%clk 0:02:50.8]}
7. Bd3 {[%clk 0:02:52.1]} 7... Nd7 {[%clk 0:02:50.9]} 8. O-O {[%clk 0:02:52.3]}
8... b6 {[%clk 0:02:50.9]} 9. a4 {[%clk 0:02:45.7]} 9... Bb7 {[%clk 0:02:50.9]}
10. a5 {[%clk 0:02:46.1]} 10... bxa5 {[%clk 0:02:50.6]} 11. c5 {[%clk
0:02:46.6]} 11... Ng6 {[%clk 0:02:49.2]} 12. Re1 {[%clk 0:02:29.6]} 12... Be7
{[%clk 0:02:48.9]} 13. g3 {[%clk 0:02:29.9]} 13... O-O {[%clk 0:02:48.4]} 14. h4
{[%clk 0:02:30.5]} 14... Re8 {[%clk 0:02:47.2]} 15. Bg5 {[%clk 0:01:52]} 15...
Ngf8 {[%clk 0:02:30.4]} 16. Qa4 {[%clk 0:01:40.2]} 16... f6 {[%clk 0:02:29.9]}
17. Bf4 {[%clk 0:01:29.8]} 17... fxe5 {[%clk 0:02:29.7]} 18. Bxe5 {[%clk
0:01:26.1]} 18... Bf6 {[%clk 0:02:27.9]} 19. Qxa5 {[%clk 0:01:22.4]} 19... Bxe5
{[%clk 0:02:27.7]} 20. dxe5 {[%clk 0:01:18.6]} 20... Qxa5 {[%clk 0:02:19]} 21.
Rxa5 {[%clk 0:01:18.1]} 21... g6 {[%clk 0:02:12.9]} 22. Nd4 {[%clk 0:01:07.7]}
22... Kf7 {[%clk 0:02:05.9]} 23. f4 {[%clk 0:01:07.8]} 23... Ke7 {[%clk
0:02:05.3]} 24. Rea1 {[%clk 0:01:05.8]} 24... a6 {[%clk 0:02:02.5]} 25. b4
{[%clk 0:01:02.1]} 25... Nb8 {[%clk 0:02:00.9]} 26. Kf2 {[%clk 0:00:48.8]} 26...
Nfd7 {[%clk 0:02:00.3]} 27. h5 {[%clk 0:00:47.8]} 27... gxh5 {[%clk 0:01:56.8]}
28. Rh1 {[%clk 0:00:47.4]} 28... Rf8 {[%clk 0:01:55.1]} 29. Rxh5 {[%clk
0:00:47.1]} 29... Rf7 {[%clk 0:01:55.4]} 30. Bxh7 {[%clk 0:00:41.3]} 30... Nxe5
{[%clk 0:01:53]} 31. Rxe5 {[%clk 0:00:39.6]} 31... Rxh7 {[%clk 0:01:53]} 32.
Nxe6 {[%clk 0:00:39.4]} 32... Kd7 {[%clk 0:01:53.9]} 33. Na4 {[%clk 0:00:35.3]}
33... Kc8 {[%clk 0:01:48.7]} 34. Nb6# {[%clk 0:00:35]} 1-0

[Event "*** Titled Tuesday Blitz"]
[Site "Chess.com"]
[Date "2020.05.19"]
[Round "2"]
[White "TregubovP"]
[Black "jefferyx"]
[Result "0-1"]
[WhiteElo "2559"]
[BlackElo "2946"]
[TimeControl "180+1"]
[EndTime "12:16:23 PDT"]
[Termination "jefferyx won by resignation"]

1. e4 {[%clk 0:03:00.9]} 1... e5 {[%clk 0:02:45.5]} 2. Nf3 {[%clk 0:03:00.4]}
2... Nc6 {[%clk 0:02:44.9]} 3. Bb5 {[%clk 0:03:00.7]} 3... Nge7 {[%clk
0:02:42.3]} 4. O-O {[%clk 0:02:57.4]} 4... a6 {[%clk 0:02:41.1]} 5. Ba4 {[%clk
0:02:55.9]} 5... g6 {[%clk 0:02:41.7]} 6. d4 {[%clk 0:02:54.5]} 6... exd4 {[%clk
0:02:41]} 7. Nxd4 {[%clk 0:02:51.6]} 7... Na5 {[%clk 0:02:40.9]} 8. c3 {[%clk
0:02:42.7]} 8... Bg7 {[%clk 0:02:40.3]} 9. Nd2 {[%clk 0:02:35.5]} 9... O-O
{[%clk 0:02:40]} 10. N2f3 {[%clk 0:02:33.6]} 10... b5 {[%clk 0:02:39.9]} 11. Bc2
{[%clk 0:02:33]} 11... Bb7 {[%clk 0:02:40.4]} 12. Re1 {[%clk 0:02:32.3]} 12...
d6 {[%clk 0:02:40.4]} 13. Bf4 {[%clk 0:02:29.7]} 13... Nc4 {[%clk 0:02:38.8]}
14. b3 {[%clk 0:02:27.2]} 14... Ne5 {[%clk 0:02:37.3]} 15. Qd2 {[%clk
0:02:26.8]} 15... c5 {[%clk 0:02:34.8]} 16. Ne2 {[%clk 0:02:19.5]} 16... Nxf3+
{[%clk 0:02:34]} 17. gxf3 {[%clk 0:02:19.8]} 17... d5 {[%clk 0:02:34.9]} 18.
Rad1 {[%clk 0:02:16.6]} 18... Qc8 {[%clk 0:02:32.8]} 19. Ng3 {[%clk 0:01:53.1]}
19... Rd8 {[%clk 0:02:26]} 20. Bg5 {[%clk 0:01:49.5]} 20... Qc7 {[%clk
0:02:25.2]} 21. Bxe7 {[%clk 0:01:44.5]} 21... Qxe7 {[%clk 0:02:24.6]} 22. exd5
{[%clk 0:01:45.1]} 22... Qf6 {[%clk 0:02:17.8]} 23. c4 {[%clk 0:01:45.3]} 23...
Qxf3 {[%clk 0:02:17.7]} 24. Re3 {[%clk 0:01:36.6]} 24... Qf6 {[%clk 0:02:17]}
25. Ne4 {[%clk 0:01:35.2]} 25... Qb6 {[%clk 0:02:15.4]} 26. Qe2 {[%clk
0:01:26.3]} 26... Bc8 {[%clk 0:02:08.2]} 27. Ng3 {[%clk 0:01:20.1]} 27... Bd7
{[%clk 0:02:05.1]} 28. Be4 {[%clk 0:01:19.2]} 28... Re8 {[%clk 0:02:02.9]} 29.
Bf3 {[%clk 0:01:16.5]} 29... Bd4 {[%clk 0:02:02]} 30. Rxe8+ {[%clk 0:01:13.3]}
30... Rxe8 {[%clk 0:02:02.9]} 31. Qd3 {[%clk 0:01:11.7]} 31... Qf6 {[%clk
0:02:01.8]} 32. Kg2 {[%clk 0:00:44.3]} 32... h5 {[%clk 0:02:00.6]} 33. Rd2
{[%clk 0:00:36.7]} 33... Qg5 {[%clk 0:01:57.3]} 34. Kh1 {[%clk 0:00:27.2]} 34...
Re1+ {[%clk 0:01:55.7]} 0-1

[Event "*** Titled Tuesday Blitz"]
[Site "Chess.com"]
[Date "2020.05.19"]
[Round "2"]
[White "AuggieWren"]
[Black "DaggiGretarsson"]
[Result "0-1"]
[WhiteElo "2287"]
[BlackElo "2614"]
[TimeControl "180+1"]
[EndTime "12:16:23 PDT"]
[Termination "DaggiGretarsson won by resignation"]

1. Nf3 {[%clk 0:03:00.9]} 1... d5 {[%clk 0:02:58.6]} 2. d4 {[%clk 0:03:00.5]}
2... Nf6 {[%clk 0:02:54]} 3. c4 {[%clk 0:02:59.1]} 3... c6 {[%clk 0:02:52.9]} 4.
Nc3 {[%clk 0:02:56.3]} 4... dxc4 {[%clk 0:02:48.9]} 5. a4 {[%clk 0:02:55.5]}
5... Bf5 {[%clk 0:02:47.3]} 6. e3 {[%clk 0:02:54.2]} 6... e6 {[%clk 0:02:46.2]}
7. Bxc4 {[%clk 0:02:52.6]} 7... Nbd7 {[%clk 0:02:45.9]} 8. O-O {[%clk
0:02:52.5]} 8... Bb4 {[%clk 0:02:38.9]} 9. Qe2 {[%clk 0:02:52.8]} 9... Bg6
{[%clk 0:02:37.2]} 10. e4 {[%clk 0:02:49.1]} 10... O-O {[%clk 0:02:34.9]} 11.
Bd3 {[%clk 0:02:32.7]} 11... Qa5 {[%clk 0:02:31.6]} 12. Bd2 {[%clk 0:02:28.7]}
12... Rac8 {[%clk 0:02:24.7]} 13. e5 {[%clk 0:02:28.4]} 13... Nd5 {[%clk
0:02:19.5]} 14. Ne4 {[%clk 0:02:09.7]} 14... Bxd2 {[%clk 0:02:17.1]} 15. Nexd2
{[%clk 0:02:09.5]} 15... c5 {[%clk 0:02:06.3]} 16. Nc4 {[%clk 0:02:05.8]} 16...
Qb4 {[%clk 0:02:04.8]} 17. Bxg6 {[%clk 0:02:01.2]} 17... fxg6 {[%clk 0:01:59.1]}
18. Nd6 {[%clk 0:01:57.1]} 18... Rb8 {[%clk 0:01:57.4]} 19. Ng5 {[%clk
0:01:43.6]} 19... Nf4 {[%clk 0:01:55.5]} 20. Qg4 {[%clk 0:01:09.2]} 20... cxd4
{[%clk 0:01:48.6]} 21. Rfe1 {[%clk 0:00:39.2]} 21... d3 {[%clk 0:01:28.2]} 22.
Nxe6 {[%clk 0:00:37.6]} 22... Ne2+ {[%clk 0:01:26.8]} 0-1

[Event "*** Titled Tuesday Blitz"]
[Site "Chess.com"]
[Date "2020.05.19"]
[Round "2"]
[White "HanSchut"]
[Black "thedjoker98"]
[Result "1-0"]
[WhiteElo "2231"]
[BlackElo "2429"]
[TimeControl "180+1"]
[EndTime "12:16:26 PDT"]
[Termination "HanSchut won by checkmate"]

1. e4 {[%clk 0:03:00.9]} 1... e5 {[%clk 0:02:59.9]} 2. Nf3 {[%clk 0:02:59]} 2...
Nc6 {[%clk 0:02:56.7]} 3. Bc4 {[%clk 0:02:58.3]} 3... Bc5 {[%clk 0:02:49.8]} 4.
b4 {[%clk 0:02:58.2]} 4... Bxb4 {[%clk 0:02:49.7]} 5. c3 {[%clk 0:02:58.5]} 5...
Ba5 {[%clk 0:02:50.2]} 6. d4 {[%clk 0:02:58.7]} 6... d6 {[%clk 0:02:50.5]} 7.
Qb3 {[%clk 0:02:58.1]} 7... Qe7 {[%clk 0:02:49.9]} 8. d5 {[%clk 0:02:55.1]} 8...
Nd4 {[%clk 0:02:50.1]} 9. Nxd4 {[%clk 0:02:54]} 9... exd4 {[%clk 0:02:46.4]} 10.
O-O {[%clk 0:02:54]} 10... Bb6 {[%clk 0:02:42.6]} 11. e5 {[%clk 0:02:54.4]}
11... dxe5 {[%clk 0:02:31.9]} 12. Ba3 {[%clk 0:02:53.2]} 12... Qf6 {[%clk
0:02:31.5]} 13. cxd4 {[%clk 0:02:50.6]} 13... Bxd4 {[%clk 0:02:30.3]} 14. Nd2
{[%clk 0:02:50.4]} 14... Ne7 {[%clk 0:02:29.4]} 15. d6 {[%clk 0:02:46.5]} 15...
cxd6 {[%clk 0:02:25.2]} 16. Ne4 {[%clk 0:02:46.2]} 16... Qf4 {[%clk 0:02:17.9]}
17. Nxd6+ {[%clk 0:02:39.3]} 17... Kf8 {[%clk 0:02:15.1]} 18. Nxf7 {[%clk
0:02:26.6]} 18... Rg8 {[%clk 0:02:15.1]} 19. Rae1 {[%clk 0:01:25.9]} 19... Bg4
{[%clk 0:01:53.5]} 20. Bxe7+ {[%clk 0:01:08.7]} 20... Kxe7 {[%clk 0:01:51.2]}
21. Qxb7+ {[%clk 0:01:07.7]} 21... Bd7 {[%clk 0:01:44.7]} 22. Nxe5 {[%clk
0:01:00.1]} 22... Bxe5 {[%clk 0:01:43.8]} 23. g3 {[%clk 0:01:00.6]} 23... Qxc4
{[%clk 0:01:37.8]} 24. Rxe5+ {[%clk 0:01:00.6]} 24... Kf6 {[%clk 0:01:38.1]} 25.
Qxd7 {[%clk 0:00:55.5]} 25... Kxe5 {[%clk 0:01:33.9]} 26. Re1+ {[%clk
0:00:55.7]} 26... Kf6 {[%clk 0:01:34.2]} 27. Qe7+ {[%clk 0:00:56.2]} 27... Kg6
{[%clk 0:01:33.9]} 28. Re6+ {[%clk 0:00:54.5]} 28... Qxe6 {[%clk 0:01:29.7]} 29.
Qxe6+ {[%clk 0:00:55.4]} 29... Kg5 {[%clk 0:01:30.6]} 30. f4+ {[%clk 0:00:54.6]}
30... Kh5 {[%clk 0:01:30.4]} 31. h3 {[%clk 0:00:48.4]} 31... g6 {[%clk
0:01:28.8]} 32. g4+ {[%clk 0:00:44.4]} 32... Kh6 {[%clk 0:01:28.9]} 33. g5+
{[%clk 0:00:41.2]} 33... Kg7 {[%clk 0:01:29.2]} 34. Qf6# {[%clk 0:00:41.1]} 1-0

[Event "*** Titled Tuesday Blitz"]
[Site "Chess.com"]
[Date "2020.05.19"]
[Round "2"]
[White "SantoBlue"]
[Black "Sergey85Rodchenkov"]
[Result "1-0"]
[WhiteElo "2789"]
[BlackElo "2509"]
[TimeControl "180+1"]
[EndTime "12:16:27 PDT"]
[Termination "SantoBlue won by resignation"]

1. e4 {[%clk 0:03:00.9]} 1... c5 {[%clk 0:02:59.5]} 2. Nf3 {[%clk 0:03:00.6]}
2... d6 {[%clk 0:02:59.7]} 3. d4 {[%clk 0:03:00.9]} 3... cxd4 {[%clk 0:03:00.4]}
4. Nxd4 {[%clk 0:03:01.3]} 4... Nf6 {[%clk 0:03:01]} 5. Nc3 {[%clk 0:03:01.4]}
5... a6 {[%clk 0:03:01.6]} 6. a3 {[%clk 0:03:00.5]} 6... e5 {[%clk 0:02:55.8]}
7. Nf5 {[%clk 0:02:53.3]} 7... Bxf5 {[%clk 0:02:54.9]} 8. exf5 {[%clk
0:02:53.3]} 8... d5 {[%clk 0:02:54.4]} 9. Bg5 {[%clk 0:02:41.4]} 9... d4 {[%clk
0:02:53.4]} 10. Ne4 {[%clk 0:02:39.2]} 10... Be7 {[%clk 0:02:52.9]} 11. Bxf6
{[%clk 0:02:38.7]} 11... Bxf6 {[%clk 0:02:53.1]} 12. g3 {[%clk 0:02:38.1]} 12...
O-O {[%clk 0:02:52.5]} 13. Bg2 {[%clk 0:02:38.1]} 13... Nc6 {[%clk 0:02:53]} 14.
O-O {[%clk 0:02:38.2]} 14... Rc8 {[%clk 0:02:52.9]} 15. Qd3 {[%clk 0:02:30.6]}
15... Re8 {[%clk 0:02:50]} 16. h4 {[%clk 0:02:29.4]} 16... Be7 {[%clk
0:02:47.3]} 17. Rad1 {[%clk 0:02:26.4]} 17... Bf8 {[%clk 0:02:47]} 18. f6 {[%clk
0:02:21.3]} 18... g6 {[%clk 0:02:45.7]} 19. h5 {[%clk 0:02:18]} 19... Qb6 {[%clk
0:02:34.2]} 20. hxg6 {[%clk 0:02:17.3]} 20... hxg6 {[%clk 0:02:33.7]} 21. g4
{[%clk 0:02:01.3]} 21... Nd8 {[%clk 0:02:19.1]} 22. Qh3 {[%clk 0:01:58.5]} 22...
Ne6 {[%clk 0:02:18]} 23. Rd3 {[%clk 0:01:47.7]} 23... Nf4 {[%clk 0:01:57.2]} 24.
Qh4 {[%clk 0:01:47.2]} 24... Bc5 {[%clk 0:01:30.3]} 25. b4 {[%clk 0:01:28.8]}
25... Nxd3 {[%clk 0:01:16.1]} 26. bxc5 {[%clk 0:01:19.9]} 26... Nxc5 {[%clk
0:01:15.5]} 27. Qh6 {[%clk 0:01:15]} 27... Ne6 {[%clk 0:01:03]} 28. Ng5 {[%clk
0:01:14.8]} 1-0

[Event "*** Titled Tuesday Blitz"]
[Site "Chess.com"]
[Date "2020.05.19"]
[Round "2"]
[White "TenisMaster"]
[Black "DanielTitichoca"]
[Result "1-0"]
[WhiteElo "2780"]
[BlackElo "2341"]
[TimeControl "180+1"]
[EndTime "12:16:27 PDT"]
[Termination "TenisMaster won by resignation"]

1. e4 {[%clk 0:03:00.9]} 1... c5 {[%clk 0:02:59.9]} 2. Nf3 {[%clk 0:02:59.6]}
2... d6 {[%clk 0:03:00.4]} 3. d4 {[%clk 0:02:58.8]} 3... cxd4 {[%clk 0:03:01.3]}
4. Nxd4 {[%clk 0:02:59.4]} 4... Nf6 {[%clk 0:03:01.8]} 5. Nc3 {[%clk 0:02:59.4]}
5... a6 {[%clk 0:03:01.8]} 6. Bg5 {[%clk 0:02:57.8]} 6... e6 {[%clk 0:03:00.5]}
7. Qf3 {[%clk 0:02:56.9]} 7... Nbd7 {[%clk 0:02:59.1]} 8. O-O-O {[%clk
0:02:56.7]} 8... Be7 {[%clk 0:02:56.3]} 9. Bd3 {[%clk 0:02:48.2]} 9... Qa5
{[%clk 0:02:52.4]} 10. h4 {[%clk 0:02:37.6]} 10... h6 {[%clk 0:02:49.4]} 11. Bd2
{[%clk 0:02:33]} 11... Qc7 {[%clk 0:02:47.4]} 12. g4 {[%clk 0:02:16.2]} 12...
Ne5 {[%clk 0:02:40.9]} 13. Qg3 {[%clk 0:02:16]} 13... b5 {[%clk 0:02:29.8]} 14.
g5 {[%clk 0:02:06.4]} 14... b4 {[%clk 0:02:20.6]} 15. gxf6 {[%clk 0:02:01.7]}
15... bxc3 {[%clk 0:02:19.2]} 16. Qxg7 {[%clk 0:01:48.5]} 16... cxd2+ {[%clk
0:02:14.3]} 17. Rxd2 {[%clk 0:01:49.4]} 17... Rf8 {[%clk 0:01:47.5]} 18. fxe7
{[%clk 0:01:48.7]} 18... Qxe7 {[%clk 0:01:47.6]} 19. Qxh6 {[%clk 0:01:44.9]}
19... Bb7 {[%clk 0:01:38.9]} 20. Kb1 {[%clk 0:01:41.3]} 20... Qc7 {[%clk
0:01:30.2]} 21. Qe3 {[%clk 0:01:33.2]} 21... Rb8 {[%clk 0:01:27.8]} 22. h5
{[%clk 0:01:30.9]} 22... Qb6 {[%clk 0:01:20.5]} 23. b3 {[%clk 0:01:24.2]} 23...
Ke7 {[%clk 0:00:42.7]} 24. Nf5+ {[%clk 0:01:20.7]} 24... exf5 {[%clk 0:00:40.5]}
25. Qxb6 {[%clk 0:01:21.6]} 25... Bxe4 {[%clk 0:00:40.8]} 26. Qc7+ {[%clk
0:01:20.3]} 26... Ke8 {[%clk 0:00:38.8]} 27. Bxe4 {[%clk 0:01:20]} 1-0

[Event "*** Titled Tuesday Blitz"]
[Site "Chess.com"]
[Date "2020.05.19"]
[Round "2"]
[White "Kezin_Roman"]
[Black "zajka-molotok"]
[Result "1-0"]
[WhiteElo "2743"]
[BlackElo "2337"]
[TimeControl "180+1"]
[EndTime "12:16:32 PDT"]
[Termination "Kezin_Roman won by resignation"]

1. d4 {[%clk 0:03:00.7]} 1... e6 {[%clk 0:02:59.4]} 2. c4 {[%clk 0:03:00.7]}
2... f5 {[%clk 0:02:59]} 3. Nf3 {[%clk 0:03:00.8]} 3... Nf6 {[%clk 0:02:58.3]}
4. g3 {[%clk 0:03:01.6]} 4... Be7 {[%clk 0:02:58.6]} 5. Bg2 {[%clk 0:03:02.5]}
5... d5 {[%clk 0:02:59]} 6. O-O {[%clk 0:03:03.4]} 6... Ne4 {[%clk 0:02:59.2]}
7. Qc2 {[%clk 0:03:01.6]} 7... Nc6 {[%clk 0:02:58.5]} 8. a3 {[%clk 0:02:56.8]}
8... Bf6 {[%clk 0:02:51.7]} 9. Rd1 {[%clk 0:02:55.8]} 9... h5 {[%clk 0:02:28.9]}
10. b4 {[%clk 0:02:54.2]} 10... h4 {[%clk 0:02:26.9]} 11. Bb2 {[%clk 0:02:53.1]}
11... hxg3 {[%clk 0:02:25.8]} 12. hxg3 {[%clk 0:02:54]} 12... g5 {[%clk
0:02:07.4]} 13. Nc3 {[%clk 0:02:49]} 13... Qd7 {[%clk 0:01:38.9]} 14. Ne5 {[%clk
0:02:40.9]} 14... Bxe5 {[%clk 0:01:15.6]} 15. dxe5 {[%clk 0:02:41.8]} 15... Nxc3
{[%clk 0:01:10.3]} 16. Bxc3 {[%clk 0:02:42.7]} 16... Ne7 {[%clk 0:01:05]} 17.
cxd5 {[%clk 0:02:42.6]} 17... Nxd5 {[%clk 0:00:55.3]} 18. Bxd5 {[%clk 0:02:25]}
18... Qh7 {[%clk 0:00:41.5]} 19. Bg2 {[%clk 0:02:23]} 19... Bd7 {[%clk
0:00:41.2]} 20. Rxd7 {[%clk 0:02:14.4]} 20... Qxd7 {[%clk 0:00:25.9]} 21. Rd1
{[%clk 0:02:11.7]} 21... Qh7 {[%clk 0:00:25.5]} 22. Bxb7 {[%clk 0:02:11.1]}
22... Qh2+ {[%clk 0:00:24.6]} 23. Kf1 {[%clk 0:02:10.9]} 23... Rd8 {[%clk
0:00:22.1]} 24. Rxd8+ {[%clk 0:02:06.5]} 24... Kxd8 {[%clk 0:00:22.4]} 25. Qd2+
{[%clk 0:02:07.4]} 25... Ke8 {[%clk 0:00:19.8]} 26. Qxg5 {[%clk 0:02:05.6]}
26... Qh7 {[%clk 0:00:15.4]} 27. Bc6+ {[%clk 0:02:04.3]} 27... Kf8 {[%clk
0:00:15.1]} 28. Qd8+ {[%clk 0:02:00.1]} 28... Kg7 {[%clk 0:00:14.8]} 29. Qf6+
{[%clk 0:02:01]} 29... Kg8 {[%clk 0:00:14.6]} 30. Qxe6+ {[%clk 0:02:01.9]} 30...
Qf7 {[%clk 0:00:14.7]} 31. Qxf7+ {[%clk 0:02:01.4]} 31... Kxf7 {[%clk
0:00:14.7]} 32. e6+ {[%clk 0:02:02.3]} 1-0

[Event "*** Titled Tuesday Blitz"]
[Site "Chess.com"]
[Date "2020.05.19"]
[Round "2"]
[White "Chepaschess"]
[Black "Airquake"]
[Result "1-0"]
[WhiteElo "2818"]
[BlackElo "2519"]
[TimeControl "180+1"]
[EndTime "12:16:35 PDT"]
[Termination "Chepaschess won by resignation"]

1. Nf3 {[%clk 0:02:59.2]} 1... Nf6 {[%clk 0:02:59.7]} 2. c4 {[%clk 0:02:56]}
2... e6 {[%clk 0:02:55.7]} 3. d4 {[%clk 0:02:52.2]} 3... d5 {[%clk 0:02:54.8]}
4. g3 {[%clk 0:02:51]} 4... Be7 {[%clk 0:02:51.7]} 5. Bg2 {[%clk 0:02:50.4]}
5... O-O {[%clk 0:02:52.3]} 6. Nc3 {[%clk 0:02:50.9]} 6... b6 {[%clk 0:02:52.7]}
7. cxd5 {[%clk 0:02:49.7]} 7... exd5 {[%clk 0:02:52.6]} 8. O-O {[%clk
0:02:49.3]} 8... Bb7 {[%clk 0:02:53.2]} 9. Ne5 {[%clk 0:02:49.5]} 9... c6 {[%clk
0:02:39]} 10. Bf4 {[%clk 0:02:43.7]} 10... Nbd7 {[%clk 0:02:35.9]} 11. Rc1
{[%clk 0:02:43.1]} 11... h6 {[%clk 0:02:31.5]} 12. e4 {[%clk 0:02:40.8]} 12...
dxe4 {[%clk 0:01:54]} 13. Nxe4 {[%clk 0:02:41.7]} 13... Nxe4 {[%clk 0:01:54.2]}
14. Bxe4 {[%clk 0:02:39.6]} 14... Nxe5 {[%clk 0:01:53.8]} 15. dxe5 {[%clk
0:02:16.1]} 15... Qc8 {[%clk 0:01:15.7]} 16. Qf3 {[%clk 0:02:11.7]} 16... Qe6
{[%clk 0:01:06.2]} 17. Bxc6 {[%clk 0:01:49.7]} 17... Bxc6 {[%clk 0:01:05.8]} 18.
Rxc6 {[%clk 0:01:50.6]} 18... Qxa2 {[%clk 0:01:06]} 19. Bxh6 {[%clk 0:01:46.3]}
19... gxh6 {[%clk 0:00:26.1]} 20. Rxh6 {[%clk 0:01:41.5]} 20... Kg7 {[%clk
0:00:14.7]} 21. Rh5 {[%clk 0:01:39.2]} 21... f5 {[%clk 0:00:10.2]} 22. exf6+
{[%clk 0:01:37.8]} 22... Bxf6 {[%clk 0:00:07.4]} 23. Qg4+ {[%clk 0:01:37.2]}
23... Kf7 {[%clk 0:00:07.2]} 24. Rh7+ {[%clk 0:01:35.9]} 1-0

[Event "*** Titled Tuesday Blitz"]
[Site "Chess.com"]
[Date "2020.05.19"]
[Round "2"]
[White "GHANDEEVAM2003"]
[Black "Mikhail_Golubev"]
[Result "1-0"]
[WhiteElo "2912"]
[BlackElo "2554"]
[TimeControl "180+1"]
[EndTime "12:16:36 PDT"]
[Termination "GHANDEEVAM2003 won by resignation"]

1. b3 {[%clk 0:03:00.9]} 1... d6 {[%clk 0:02:59.2]} 2. Bb2 {[%clk 0:03:01.5]}
2... Nd7 {[%clk 0:02:59.7]} 3. d4 {[%clk 0:03:00.8]} 3... Ngf6 {[%clk
0:02:58.3]} 4. Nf3 {[%clk 0:03:01]} 4... g6 {[%clk 0:02:58.1]} 5. g3 {[%clk
0:03:01.6]} 5... Bg7 {[%clk 0:02:58.5]} 6. Bg2 {[%clk 0:03:02.2]} 6... O-O
{[%clk 0:02:58.4]} 7. O-O {[%clk 0:03:02.8]} 7... Re8 {[%clk 0:02:50]} 8. c4
{[%clk 0:03:02.2]} 8... e5 {[%clk 0:02:46]} 9. dxe5 {[%clk 0:03:03.1]} 9... Ng4
{[%clk 0:02:45.7]} 10. Qd2 {[%clk 0:03:02.5]} 10... Ngxe5 {[%clk 0:02:31.7]} 11.
Nc3 {[%clk 0:03:01.6]} 11... Nc5 {[%clk 0:02:25.3]} 12. Rad1 {[%clk 0:02:49]}
12... a5 {[%clk 0:02:19.2]} 13. Nxe5 {[%clk 0:02:45.5]} 13... Bxe5 {[%clk
0:02:18.6]} 14. Nd5 {[%clk 0:02:45]} 14... c6 {[%clk 0:02:08.1]} 15. Bxe5 {[%clk
0:02:34.4]} 15... dxe5 {[%clk 0:02:05.3]} 16. Qe3 {[%clk 0:02:34.1]} 16... cxd5
{[%clk 0:01:59.6]} 17. Qxc5 {[%clk 0:02:33.8]} 17... d4 {[%clk 0:01:57.7]} 18.
e3 {[%clk 0:02:34.2]} 18... d3 {[%clk 0:01:55.1]} 19. Bd5 {[%clk 0:02:27.4]}
19... Bh3 {[%clk 0:01:31.8]} 20. Rxd3 {[%clk 0:02:25.7]} 20... Qf6 {[%clk
0:01:23]} 21. Bg2 {[%clk 0:02:25.1]} 21... Bxg2 {[%clk 0:01:17.3]} 22. Kxg2
{[%clk 0:02:26]} 22... e4 {[%clk 0:01:15.5]} 23. Rd7 {[%clk 0:02:16.3]} 23...
Qf3+ {[%clk 0:01:15]} 24. Kg1 {[%clk 0:02:16.3]} 24... Red8 {[%clk 0:01:07.3]}
25. Qd5 {[%clk 0:02:11.3]} 25... Rxd7 {[%clk 0:01:01]} 26. Qxd7 {[%clk
0:02:12.2]} 26... h5 {[%clk 0:00:55.8]} 27. h4 {[%clk 0:02:09.7]} 27... a4
{[%clk 0:00:42.7]} 28. b4 {[%clk 0:02:06.7]} 28... a3 {[%clk 0:00:40.8]} 29. c5
{[%clk 0:02:06.5]} 29... Qe2 {[%clk 0:00:34.1]} 30. Qxb7 {[%clk 0:02:06.1]}
30... Rd8 {[%clk 0:00:31.5]} 31. Qxe4 {[%clk 0:02:02.1]} 31... Qxa2 {[%clk
0:00:31.2]} 32. c6 {[%clk 0:02:02.5]} 32... Qb2 {[%clk 0:00:29.1]} 33. c7 {[%clk
0:02:01.1]} 33... Rc8 {[%clk 0:00:28.3]} 34. Qb7 {[%clk 0:01:59.7]} 1-0

[Event "*** Titled Tuesday Blitz"]
[Site "Chess.com"]
[Date "2020.05.19"]
[Round "2"]
[White "sari07"]
[Black "Emolas-2020"]
[Result "1-0"]
[WhiteElo "2441"]
[BlackElo "2156"]
[TimeControl "180+1"]
[EndTime "12:16:36 PDT"]
[Termination "sari07 won by checkmate"]

1. d4 {[%clk 0:03:00]} 1... g6 {[%clk 0:02:28.3]} 2. c4 {[%clk 0:03:00.6]} 2...
Bg7 {[%clk 0:02:27.7]} 3. Nc3 {[%clk 0:02:59.9]} 3... e6 {[%clk 0:02:26.5]} 4.
e4 {[%clk 0:02:59]} 4... Ne7 {[%clk 0:02:26.8]} 5. Nf3 {[%clk 0:02:53.2]} 5...
O-O {[%clk 0:02:26.1]} 6. Bf4 {[%clk 0:02:50.7]} 6... d5 {[%clk 0:02:25.3]} 7.
cxd5 {[%clk 0:02:45.4]} 7... exd5 {[%clk 0:02:25]} 8. e5 {[%clk 0:02:45.3]} 8...
Bg4 {[%clk 0:02:23]} 9. Be2 {[%clk 0:02:43.6]} 9... Nbc6 {[%clk 0:02:20.3]} 10.
O-O {[%clk 0:02:42.8]} 10... Nf5 {[%clk 0:02:19.9]} 11. Be3 {[%clk 0:02:30.2]}
11... Nxe3 {[%clk 0:02:18.8]} 12. fxe3 {[%clk 0:02:31.1]} 12... f6 {[%clk
0:01:51.1]} 13. exf6 {[%clk 0:02:20.1]} 13... Bxf6 {[%clk 0:01:49.1]} 14. Qb3
{[%clk 0:02:18.4]} 14... Ne7 {[%clk 0:01:35.5]} 15. e4 {[%clk 0:01:59.1]} 15...
Bxf3 {[%clk 0:01:31.8]} 16. Bxf3 {[%clk 0:02:00]} 16... Bxd4+ {[%clk 0:01:31.6]}
17. Kh1 {[%clk 0:02:00.3]} 17... c6 {[%clk 0:01:27.6]} 18. exd5 {[%clk
0:01:56.6]} 18... cxd5 {[%clk 0:01:23.4]} 19. Rad1 {[%clk 0:01:55.5]} 19... Bxc3
{[%clk 0:01:09.9]} 20. Qxc3 {[%clk 0:01:52.5]} 20... Rc8 {[%clk 0:01:02.4]} 21.
Qd4 {[%clk 0:01:44.6]} 21... Qa5 {[%clk 0:00:39.3]} 22. Rfe1 {[%clk 0:01:38.3]}
22... Rf7 {[%clk 0:00:34.7]} 23. Rxe7 {[%clk 0:01:29.3]} 23... Rxe7 {[%clk
0:00:32.8]} 24. Bxd5+ {[%clk 0:01:29.1]} 24... Kf8 {[%clk 0:00:29]} 25. Qh8#
{[%clk 0:01:28.2]} 1-0